bitfinex/quotes_SOLUSD_20220216
["timestamp","ask_amount","ask_price","bid_price","bid_amount"]
[1645044655620,1.36597165,103.0,102.94,36.06313345]
[1645044656218,15.93617165,103.0,102.94,36.06313345]
[1645044656620,19.46062948,103.0,102.94,36.06313345]
[1645044657020,18.47729569,103.0,102.94,36.06313345]
[1645044657220,15.93617165,103.0,102.94,36.06313345]
[1645044657421,23.99347165,103.01,102.94,36.06313345]
[1645044657822,22.6275,103.01,102.94,36.06313345]
[1645044658226,23.99347165,103.01,102.94,36.06313345]
[1645044660726,1.36597165,103.01,102.94,108.85923345]
[1645044660927,1.36597165,103.01,102.94,205.56923345]
[1645044661225,1.36597165,103.02,102.94,205.56923345]
[1645044661427,1.36597165,103.03,102.94,205.56923345]
[1645044661624,1.36597165,103.03,102.95,24.4748]
[1645044661826,1.36597165,103.03,102.96,14.5621]
[1645044662424,1.36597165,103.03,102.96,111.2721]
[1645044662626,1.36597165,103.04,102.96,111.2721]
[1645044663228,1.36597165,103.04,102.96,169.5021]
[1645044663826,1.36597165,103.05,102.96,169.5021]
[1645044664028,1.36597165,103.05,102.99,158.62999855]
[1645044664226,1.36597165,103.05,102.99,61.91999855]
[1645044664929,1.36597165,103.05,102.99,158.62999855]
[1645044665132,1.36597165,103.06,102.99,158.59950486]
[1645044665328,1.36597165,103.06,102.99,183.14530486]
[1645044665529,1.36597165,103.07,102.99,183.14530486]
[1645044665830,1.36597165,103.07,102.99,86.43530486]
[1645044666928,1.36597165,103.07,102.99,183.14530486]
[1645044667231,1.36597165,103.07,102.99,144.66530486]
[1645044667428,1.36597165,103.08,102.99,144.66530486]
[1645044667628,15.92297165,103.09,102.99,144.66530486]
[1645044667829,1.36597165,103.08,102.99,144.66530486]
[1645044669527,15.92297165,103.09,102.99,144.66530486]
[1645044670333,1.36597165,103.09,102.99,144.66530486]
[1645044670738,1.36597165,103.09,103.01,36.12376925]
[1645044671038,1.36597165,103.09,103.01,73.42166925]
[1645044671439,15.92297165,103.09,103.01,73.42166925]
[1645044672038,18.46409569,103.09,103.01,73.42166925]
[1645044672238,15.92297165,103.09,103.01,36.12376925]
[1645044672445,18.46409569,103.09,103.01,36.12376925]
[1645044673542,1.36597165,103.09,103.01,132.83376925]
[1645044673779,62.68687165,103.1,103.01,132.83376925]
[1645044674167,62.68687165,103.1,103.01,36.12376925]
[1645044674766,62.68687165,103.1,103.02,14.8046]
[1645044674967,62.68687165,103.1,103.03,39.39023328]
[1645044676872,65.22799569,103.1,103.03,39.39023328]
[1645044677174,84.03899569,103.1,103.03,39.39023328]
[1645044677377,12.45409568,103.09,103.01,24.0941]
[1645044677576,28.5192,103.08,102.99,47.3365]
[1645044677772,55.93842404,103.08,103.0,0.25]
[1645044677972,57.30439569,103.08,103.0,0.25]
[1645044678172,2.54112404,103.07,103.0,0.25]
[1645044678372,20.26973378,103.07,103.0,0.25]
[1645044678577,16.50112404,103.07,103.0,0.25]
[1645044678774,28.5198,103.07,103.0,0.25]
[1645044678973,13.96,103.07,103.0,0.25]
[1645044679173,13.96,103.07,103.0,14.8079]
[1645044679572,13.96,103.07,103.01,43.82978578]
[1645044681979,28.5199,103.07,103.0,0.25]
[1645044682180,29.88587165,103.07,103.0,0.25]
[1645044683178,29.88587165,103.07,103.0,40.01695929]
[1645044683981,12.47272679,103.06,103.0,39.76695929]
[1645044684182,12.47272679,103.06,102.99,47.3365]
[1645044684381,30.94142248,103.06,103.0,0.25]
[1645044684579,7.39412404,103.05,102.95,111.619]
[1645044684778,33.05089569,103.05,102.97,14.562]
[1645044684980,30.50977165,103.05,102.98,44.91420297]
[1645044685179,25.65677165,103.05,102.98,44.91420297]
[1645044685982,2.38400698,103.04,102.96,22.718]
[1645044686185,3.74997863,103.04,102.96,22.718]
[1645044686386,6.29110267,103.04,102.96,22.718]
[1645044686783,3.90709569,103.04,102.96,22.718]
[1645044687084,15.93017165,103.04,102.96,22.718]
[1645044687283,15.93017165,103.04,102.97,0.25]
[1645044687884,1.36597165,103.03,102.97,34.68448808]
[1645044689089,1.36597165,103.04,102.97,34.68448808]
[1645044689289,25.65677165,103.05,102.97,34.68448808]
[1645044689887,25.65677165,103.05,102.97,189.62448808]
[1645044690288,28.04377979,103.05,102.97,92.91448808]
[1645044690488,25.65677165,103.05,102.97,92.91448808]
[1645044690692,1.36597165,103.05,102.97,204.18628808]
[1645044690892,1.36597165,103.05,102.97,206.23794733]
[1645044691290,1.36597165,103.06,102.97,206.23794733]
[1645044691691,1.36597165,103.06,102.99,34.3577331]
[1645044691894,1.36597165,103.06,103.01,45.75580041]
[1645044694394,1.36597165,103.06,102.95,53.3886]
[1645044694595,1.36597165,103.04,102.95,4.854]
[1645044694794,1.36597165,103.03,102.95,4.854]
[1645044695395,1.36597165,103.03,102.96,48.07139455]
[1645044695597,15.93147165,103.03,102.96,48.07139455]
[1645044695795,15.93147165,103.03,102.97,0.25]
[1645044697298,15.93147165,103.03,102.96,48.07139455]
[1645044697995,1.36597165,103.03,102.96,48.07139455]
[1645044698396,1.36597165,103.04,102.96,48.07139455]
[1645044698600,1.36597165,103.04,102.97,0.25]
[1645044699298,38.17717165,103.05,102.97,0.25]
[1645044699498,24.21717165,103.05,102.97,14.8115]
[1645044699698,24.21717165,103.05,102.98,41.08600456]
[1645044700722,22.8512,103.05,102.98,41.08600456]
[1645044700923,22.8512,103.05,102.98,55.64590456]
[1645044703726,22.8512,103.05,102.98,152.35590456]
[1645044704829,22.8512,103.05,102.98,55.64590456]
[1645044706029,24.21717165,103.05,102.98,55.64590456]
[1645044707535,24.21717165,103.05,102.98,41.08600456]
[1645044707734,29.43104888,103.05,102.98,41.08600456]
[1645044707936,1.36597165,103.04,102.98,41.08600456]
[1645044708236,0.86597165,103.04,102.98,41.08600456]
[1645044709136,0.86597165,103.04,102.99,0.25]
[1645044709336,37.4143,103.05,102.99,0.25]
[1645044709934,22.8512,103.05,102.99,0.25]
[1645044710935,22.8512,103.05,102.98,41.08600456]
[1645044711177,22.8512,103.05,102.99,0.25]
[1645044711337,37.4145,103.05,102.98,41.08600456]
[1645044713739,4.853,103.04,102.98,41.08600456]
[1645044713937,25.54453701,103.04,102.96,24.5234]
[1645044714139,25.54453701,103.04,102.97,0.25]
[1645044714740,22.7824,103.03,102.92,13.96]
[1645044714943,3.87749676,103.01,102.92,37.97549793]
[1645044715142,26.65989676,103.01,102.92,37.97549793]
[1645044715342,29.2010208,103.01,102.92,37.97549793]
[1645044715740,26.65989676,103.01,102.92,37.97549793]
[1645044716143,22.7824,103.01,102.93,0.25]
[1645044717841,22.7824,103.01,102.93,14.817]
[1645044718443,35.97708382,103.01,102.93,0.25]
[1645044718946,22.7824,103.01,102.93,0.25]
[1645044720345,13.96,103.03,102.93,155.19]
[1645044720548,2.75184007,103.06,102.93,169.757]
[1645044720752,2.75184007,103.06,102.95,154.94]
[1645044721044,13.96,103.09,102.95,168.9]
[1645044721045,27.57504007,103.08,102.95,168.9]
[1645044721245,13.8273244,103.07,102.98,39.05113735]
[1645044721646,13.8273244,103.07,102.98,41.10929079]
[1645044721843,27.57504007,103.08,102.98,39.05113735]
[1645044722045,27.57504007,103.08,102.98,134.95343735]
[1645044722447,27.57504007,103.08,102.98,137.01159079]
[1645044722650,27.57504007,103.08,102.98,78.78159079]
[1645044722848,41.50768067,103.08,102.98,76.72343735]
[1645044723057,56.06638067,103.08,102.98,76.72343735]
[1645044723248,56.06638067,103.08,102.98,39.05113735]
[1645044723447,3.46521721,103.06,102.98,39.05113735]
[1645044723848,2.54112404,103.05,102.98,39.05113735]
[1645044725051,17.10462404,103.05,102.98,39.05113735]
[1645044725254,14.5635,103.05,102.98,39.05113735]
[1645044726852,14.5613,103.06,102.98,208.55203735]
[1645044727052,24.8232,103.08,102.98,208.55203735]
[1645044727053,27.57504007,103.08,102.98,208.55203735]
[1645044727452,24.8232,103.08,102.98,53.61203735]
[1645044727655,24.8232,103.08,102.98,77.96593735]
[1645044727854,38.82258915,103.08,102.98,77.96593735]
[1645044728655,43.67458915,103.08,102.98,77.96593735]
[1645044728854,58.23418915,103.08,102.98,77.96593735]
[1645044729455,60.77531319,103.08,102.98,77.96593735]
[1645044730660,63.52715326,103.08,102.98,77.96593735]
[1645044731260,63.52715326,103.08,102.98,174.67593735]
[1645044731261,19.4116,103.08,102.98,174.67593735]
[1645044731460,19.4116,103.08,102.98,232.90593735]
[1645044731461,4.852,103.08,102.98,232.90593735]
[1645044731663,2.75184007,103.09,102.98,136.19593735]
[1645044732061,8.27912878,103.09,102.98,136.19593735]
[1645044732262,55.42585217,103.1,102.98,136.19593735]
[1645044732463,2.54112404,103.09,102.98,136.19593735]
[1645044733983,17.09822404,103.09,102.98,136.19593735]
[1645044734182,23.5096,103.08,102.98,136.19593735]
[1645044735186,23.5096,103.08,102.98,232.90593735]
[1645044736691,26.02134571,103.08,102.98,77.96593735]
[1645044736892,43.12096975,103.08,102.98,77.96593735]
[1645044738486,38.0681,103.08,102.99,96.71]
[1645044738688,38.0681,103.08,103.0,14.5576]
[1645044739488,38.0681,103.08,103.01,39.14728148]
[1645044742894,1.60688013,103.07,103.01,39.14728148]
[1645044743095,40.60922404,103.08,103.01,39.14728148]
[1645044744000,40.60922404,103.08,102.98,24.3539]
[1645044744397,13.96,103.07,102.98,24.3539]
[1645044744697,14.5623,103.06,102.98,24.3539]
[1645044744898,25.37565761,103.06,102.98,63.08619236]
[1645044745096,25.37565761,103.06,102.98,38.73229236]
[1645044745297,27.91678165,103.06,102.99,0.25]
[1645044745896,17.10342404,103.06,102.98,38.73229236]
[1645044746296,14.5623,103.06,102.98,38.73229236]
[1645044747198,13.96,103.07,102.98,38.73229236]
[1645044747598,38.0692,103.08,102.99,0.25]
[1645044747898,38.0692,103.08,103.0,14.5581]
[1645044748302,38.0692,103.08,103.01,43.56844154]
[1645044748508,23.5096,103.08,103.01,43.56844154]
[1645044748906,23.5096,103.08,103.01,58.12524154]
[1645044754511,23.5096,103.08,103.01,154.83524154]
[1645044754810,23.8279,103.1,103.01,154.83524154]
[1645044755008,47.9103,103.1,103.01,58.12524154]
[1645044755610,47.9103,103.1,103.01,82.78424154]
[1645044755809,47.9103,103.1,103.02,14.8046]
[1645044756011,47.9103,103.1,103.03,45.72933943]
[1645044758113,62.4659,103.1,103.03,45.72933943]
[1645044759315,62.4659,103.1,103.02,0.25]
[1645044759316,67.25886411,103.1,103.02,0.25]
[1645044759518,67.25886411,103.1,102.97,106.756]
[1645044759718,8.27929364,103.09,102.98,37.952]
[1645044759944,14.5593,103.08,102.98,38.202]
[1645044760337,23.7637,103.07,102.99,44.06679145]
[1645044760835,23.7637,103.07,102.99,58.62609145]
[1645044764342,38.3237,103.07,102.98,24.242]
[1645044764540,38.3237,103.07,102.94,10.13475075]
[1645044764541,40.86482404,103.07,102.94,10.13475075]
[1645044764840,96.71,103.05,102.92,23.6301]
[1645044765046,101.565,103.04,102.92,23.6301]
[1645044765242,120.81796411,103.04,102.93,48.38104033]
[1645044765447,2.54112404,103.03,102.93,48.38104033]
[1645044765642,14.5692,103.01,102.93,48.38104033]
[1645044766247,14.5692,103.01,102.94,0.25]
[1645044766444,38.0708,103.01,102.94,0.25]
[1645044770147,40.61192404,103.01,102.91,23.8237]
[1645044770442,59.42692404,103.01,102.91,23.8237]
[1645044771045,59.42692404,103.01,102.92,40.51771502]
[1645044771645,59.42692404,103.01,102.93,0.25]
[1645044772045,56.8858,103.01,102.93,0.25]
[1645044772946,52.0308,103.01,102.93,0.25]
[1645044774150,52.0308,103.01,102.92,63.03631502]
[1645044775647,52.0308,103.01,102.93,0.25]
[1645044778250,56.8858,103.01,102.93,0.25]
[1645044780355,54.57192404,103.01,102.92,63.03631502]
[1645044780555,59.42792404,103.01,102.92,63.03631502]
[1645044780754,59.42792404,103.01,102.93,0.25]
[1645044782459,54.57192404,103.01,102.93,0.25]
[1645044784359,52.0308,103.01,102.93,0.25]
[1645044787360,38.0708,103.01,102.93,0.25]
[1645044787958,38.0708,103.01,102.94,38.97309273]
[1645044791360,54.57192404,103.01,102.94,38.97309273]
[1645044792963,14.5728,102.98,102.92,22.5186]
[1645044793164,14.5728,102.98,102.93,0.25]
[1645044795766,24.4759,102.99,102.93,0.25]
[1645044796666,24.4759,102.99,102.9,6.0]
[1645044796870,2.54112404,102.98,102.9,6.0]
[1645044797669,2.54112404,102.98,102.9,41.06443762]
[1645044797873,14.5752,102.97,102.9,41.06443762]
[1645044798073,14.5752,102.97,102.89,22.7572]
[1645044798074,33.3922,102.97,102.89,22.7572]
[1645044798270,2.54112404,102.96,102.88,14.29672286]
[1645044798475,25.38492404,102.96,102.88,14.29672286]
[1645044798672,13.96,102.95,102.88,14.29672286]
[1645044799075,13.96,102.95,102.89,37.20672478]
[1645044799476,28.5375,102.95,102.89,37.20672478]
[1645044799880,14.5775,102.95,102.89,37.20672478]
[1645044800079,22.8438,102.96,102.89,37.20672478]
[1645044800278,22.8438,102.96,102.9,0.25]
[1645044800479,22.8438,102.96,102.89,37.20672478]
[1645044800682,22.8438,102.96,102.88,14.29672286]
[1645044800883,16.50112404,102.95,102.88,14.29672286]
[1645044801298,13.96,102.95,102.88,14.29672286]
[1645044801702,13.96,102.95,102.89,34.36472964]
[1645044802103,14.5784,102.94,102.88,14.29672286]
[1645044802304,17.11952404,102.94,102.88,14.29672286]
[1645044804305,2.54112404,102.93,102.88,14.29672286]
[1645044804505,14.5821,102.92,102.88,14.29672286]
[1645044805606,14.5821,102.92,102.89,37.83926495]
[1645044805817,24.8833,102.94,102.89,37.83926495]
[1645044808311,14.5783,102.94,102.9,0.25]
[1645044808907,14.5783,102.94,102.89,37.83926495]
[1645044809708,14.5783,102.94,102.9,0.25]
[1645044811513,14.5783,102.94,102.89,37.83926495]
[1645044814420,14.5783,102.94,102.88,14.29672286]
[1645044814615,28.5383,102.94,102.88,14.29672286]
[1645044815019,2.54112404,102.93,102.88,14.29672286]
[1645044815222,14.5847,102.92,102.88,14.29672286]
[1645044815415,36.1777,102.92,102.88,14.29672286]
[1645044816620,41.0367,102.92,102.88,14.29672286]
[1645044818528,36.1777,102.92,102.88,14.29672286]
[1645044819623,220.569,102.91,102.87,0.4851683]
[1645044819948,13.96,102.9,102.85,6.0]
[1645044820624,110.67,102.9,102.85,6.0]
[1645044821025,13.96,102.9,102.85,6.0]
[1645044821424,110.67,102.9,102.85,1.08172201]
[1645044821627,111.2991,102.88,102.84,0.58739122]
[1645044821826,110.67,102.87,102.84,0.58739122]
[1645044822023,3.03219997,102.86,102.84,0.21544126]
[1645044822223,13.96,102.85,102.84,0.21544126]
[1645044822427,21.17233093,102.85,102.84,0.21544126]
[1645044822824,28.5542,102.85,102.84,0.21544126]
[1645044824428,37.36462088,102.85,102.84,0.21544126]
[1645044826428,37.36462088,102.85,102.84,0.43070008]
[1645044828839,28.5542,102.85,102.84,0.43070008]
[1645044829036,13.96,102.85,102.84,0.43070008]
[1645044829238,17.62189997,102.86,102.84,0.43070008]
[1645044829437,14.5897,102.86,102.84,0.43070008]
[1645044829839,23.81186999,102.86,102.84,0.43070008]
[1645044832239,14.5897,102.86,102.84,0.43070008]
[1645044833642,17.13082404,102.86,102.84,0.43070008]
[1645044833846,3.03219997,102.85,102.84,0.43070008]
[1645044834044,17.62359997,102.85,102.84,0.43070008]
[1645044837468,3.03219997,102.85,102.84,0.43070008]
[1645044838071,14.5897,102.86,102.84,0.43070008]
[1645044838268,13.96,102.87,102.84,0.43070008]
[1645044839970,28.5482,102.87,102.84,0.43070008]
[1645044842173,13.96,102.87,102.84,0.43070008]
[1645044842673,3.03219997,102.86,102.84,0.43070008]
[1645044843673,13.96,102.87,102.84,0.43070008]
[1645044843873,14.5898,102.86,102.84,0.43070008]
[1645044847576,3.03219997,102.85,102.84,0.43070008]
[1645044847776,17.62339997,102.85,102.84,0.43070008]
[1645044848377,26.79178032,102.85,102.84,0.43070008]
[1645044848578,40.75178032,102.85,102.84,0.43070008]
[1645044849778,42.10825653,102.85,102.84,0.43070008]
[1645044849988,70.0,102.84,102.83,0.51478486]
[1645044850183,72.0,102.84,102.81,0.15474068]
[1645044850386,3.03219997,102.83,102.81,0.15474068]
[1645044850584,17.62799997,102.83,102.81,0.15474068]
[1645044853408,14.5982,102.82,102.81,0.30948136]
[1645044854289,19.66128867,102.82,102.81,0.30948136]
[1645044854491,69.0,102.81,102.79,1.256e-05]
[1645044854691,14.6004,102.8,102.79,1.256e-05]
[1645044856294,17.63259997,102.8,102.79,1.256e-05]
[1645044859293,14.6004,102.8,102.79,1.256e-05]
[1645044860092,14.6004,102.8,102.78,0.4742707]
[1645044862599,14.5961,102.82,102.78,0.4742707]
[1645044863000,13.96,102.84,102.78,0.4742707]
[1645044863298,73.88187621,102.85,102.78,0.4742707]
[1645044863299,73.88187621,102.85,102.78,45.14354942]
[1645044863503,25.23177621,102.85,102.78,45.14354942]
[1645044864101,14.5938,102.84,102.78,45.14354942]
[1645044864400,22.2146177,102.84,102.78,45.14354942]
[1645044864600,14.5938,102.84,102.78,45.14354942]
[1645044864903,28.5538,102.84,102.78,0.4742707]
[1645044865099,37.31440025,102.84,102.78,0.4742707]
[1645044865499,29.91027621,102.84,102.78,0.4742707]
[1645044865699,39.30259495,102.84,102.78,0.4742707]
[1645044865902,37.94611874,102.84,102.78,0.4742707]
[1645044866102,28.5538,102.84,102.78,0.4742707]
[1645044867302,33.4168,102.84,102.78,0.4742707]
[1645044868001,35.95792404,102.84,102.78,0.4742707]
[1645044868202,37.31440025,102.84,102.78,0.4742707]
[1645044868404,34.77327621,102.84,102.78,0.4742707]
[1645044868824,34.77327621,102.84,102.78,45.06100808]
[1645044869026,33.4168,102.84,102.78,45.06100808]
[1645044869625,37.31440025,102.84,102.78,0.4742707]
[1645044870226,134.02440025,102.84,102.78,0.4742707]
[1645044870430,23.6574,102.83,102.78,0.4742707]
[1645044870626,36.20575481,102.82,102.78,0.4742707]
[1645044870831,96.71,102.78,102.74,0.52172434]
[1645044871030,96.71,102.78,102.74,0.6169816]
[1645044871031,95.96,102.77,102.74,0.6169816]
[1645044871233,95.96,102.77,102.67,0.29508634]
[1645044871234,2.47965314,102.68,102.67,0.29508634]
[1645044871628,2.72965314,102.68,102.67,1.87080028]
[1645044871830,2.47965314,102.68,102.67,41.74270027]
[1645044875830,12.13214686,102.72,102.67,41.74270027]
[1645044876037,13.96,102.73,102.69,124.0]
[1645044876232,25.85517621,102.76,102.69,0.99099082]
[1645044876233,13.96,102.75,102.69,0.99099082]
[1645044876439,4.867,102.79,102.69,1.6177809]
[1645044876641,14.6012,102.78,102.69,7.6177809]
[1645044876833,42.26646196,102.77,102.7,42.26660123]
[1645044877032,13.96,102.76,102.7,42.26660123]
[1645044877236,43.09188921,102.75,102.7,43.48429357]
[1645044877534,28.5676,102.74,102.7,43.48429357]
[1645044878335,67.13672711,102.74,102.7,43.48429357]
[1645044878736,28.5676,102.74,102.7,43.48429357]
[1645044880336,28.5676,102.74,102.7,1.21769234]
[1645044880536,31.10872404,102.74,102.7,1.21769234]
[1645044880736,31.10872404,102.74,102.7,0.39196952]
[1645044880737,95.0,102.73,102.7,0.39196952]
[1645044880935,89.0,102.71,102.68,38.580995]
[1645044881136,13.96,102.7,102.68,39.10751964]
[1645044881339,57.14550182,102.7,102.68,0.68044244]
[1645044881538,52.27650182,102.7,102.68,0.68044244]
[1645044881738,52.27650182,102.7,102.68,0.3078356]
[1645044881939,14.6182,102.69,102.68,0.3078356]
[1645044882141,3.03219997,102.69,102.68,0.3078356]
[1645044882943,49.63927274,102.69,102.68,0.3078356]
[1645044883139,63.59927274,102.69,102.68,0.3078356]
[1645044883938,78.21367274,102.69,102.68,0.3078356]
[1645044885137,80.75479678,102.69,102.68,0.3078356]
[1645044885338,80.75479678,102.69,102.68,1e-08]
[1645044885738,78.21367274,102.69,102.68,1e-08]
[1645044885940,80.75479678,102.69,102.68,1e-08]
[1645044886344,78.21367274,102.69,102.68,1e-08]
[1645044886542,83.08267274,102.69,102.68,1e-08]
[1645044886740,78.21367274,102.69,102.68,1e-08]
[1645044887542,31.60659997,102.69,102.68,1e-08]
[1645044889844,34.14772401,102.69,102.68,1e-08]
[1645044890446,31.60659997,102.69,102.68,0.61567119]
[1645044890851,60.0,102.68,102.67,0.29508634]
[1645044891045,28.5796,102.68,102.67,0.29508634]
[1645044891243,28.8296,102.68,102.67,0.29508634]
[1645044891845,69.01879816,102.68,102.67,0.29508634]
[1645044892245,28.5796,102.68,102.67,0.29508634]
[1645044892447,17.64629997,102.69,102.67,0.29508634]
[1645044892748,3.03219997,102.69,102.67,0.29508634]
[1645044893347,36.46242773,102.68,102.67,0.29508634]
[1645044893545,51.07792773,102.68,102.67,0.29508634]
[1645044893746,14.8655,102.68,102.67,0.29508634]
[1645044896751,49.94410707,102.68,102.67,0.29508634]
[1645044899249,14.8655,102.68,102.67,0.29508634]
[1645044900251,14.6155,102.68,102.67,37.99741716]
[1645044900854,14.6155,102.68,102.67,0.29508634]
[1645044901656,14.8655,102.68,102.67,0.29508634]
[1645044903086,3.03219997,102.69,102.67,0.29508634]
[1645044903482,14.6135,102.7,102.67,0.29508634]
[1645044903686,14.6135,102.7,102.62,21.57578302]
[1645044903882,14.6135,102.7,102.63,0.25]
[1645044904082,40.28981717,102.69,102.63,47.91769502]
[1645044904284,40.28981717,102.69,102.64,0.25]
[1645044904480,14.6135,102.7,102.64,0.25]
[1645044904681,28.5711,102.71,102.64,14.8614]
[1645044904884,14.6111,102.71,102.64,14.8614]
[1645044905481,38.7653157,102.7,102.65,44.13532924]
[1645044906583,14.6111,102.71,102.65,44.72550192]
[1645044906982,14.6111,102.71,102.65,59.33530192]
[1645044907184,14.6094,102.72,102.65,59.33530192]
[1645044907385,1.35647621,102.73,102.65,59.33530192]
[1645044907585,1.35647621,102.73,102.65,214.27530192]
[1645044907785,1.35647621,102.74,102.66,160.94]
[1645044908085,1.35647621,102.76,102.68,14.602]
[1645044908486,1.35647621,102.77,102.68,14.602]
[1645044908687,42.40562348,102.75,102.69,44.2552553]
[1645044908887,42.40562348,102.75,102.69,43.2552553]
[1645044909286,44.94674752,102.75,102.69,43.2552553]
[1645044909488,46.30322373,102.75,102.69,43.2552553]
[1645044909687,43.76209969,102.75,102.69,43.2552553]
[1645044910086,48.62909969,102.75,102.69,43.2552553]
[1645044910486,43.76209969,102.75,102.69,43.2552553]
[1645044910690,58.36739969,102.75,102.69,43.2552553]
[1645044911890,3.89760025,102.74,102.67,0.59017268]
[1645044912091,14.6104,102.72,102.67,0.59017268]
[1645044912789,44.85351129,102.71,102.67,0.59017268]
[1645044913190,59.46461129,102.71,102.67,0.59017268]
[1645044915391,64.33361129,102.71,102.67,0.59017268]
[1645044915691,59.46461129,102.71,102.67,0.59017268]
[1645044916091,64.33361129,102.71,102.67,0.59017268]
[1645044917697,19.4801,102.71,102.67,0.59017268]
[1645044917897,19.4801,102.71,102.66,31.22118584]
[1645044918096,14.6111,102.71,102.66,31.22118584]
[1645044918499,14.6111,102.71,102.64,0.52925132]
[1645044918699,2.54112404,102.7,102.64,0.52925132]
[1645044918898,6.22547621,102.72,102.64,0.52925132]
[1645044919200,1.35647621,102.73,102.64,0.52925132]
[1645044919597,39.13148098,102.72,102.65,45.74457718]
[1645044920001,53.74108098,102.72,102.65,45.74457718]
[1645044920400,55.09755719,102.72,102.65,45.74457718]
[1645044920800,59.96655719,102.72,102.65,45.74457718]
[1645044921205,59.96655719,102.72,102.64,0.52925132]
[1645044921402,62.50768123,102.72,102.64,0.52925132]
[1645044921601,59.96655719,102.72,102.64,0.52925132]
[1645044922203,53.74108098,102.72,102.65,43.39991036]
[1645044922403,14.6096,102.72,102.65,43.39991036]
[1645044922604,15.96447621,102.73,102.65,43.39991036]
[1645044922803,14.608,102.73,102.65,48.26891036]
[1645044923402,53.91351082,102.73,102.65,48.26891036]
[1645044923604,29.92327621,102.74,102.65,62.87791036]
[1645044924007,1.35647621,102.74,102.65,58.00891036]
[1645044924603,36.75382181,102.73,102.65,82.72841036]
[1645044925206,1.35647621,102.74,102.65,82.72841036]
[1645044925803,15.96317621,102.74,102.65,82.72841036]
[1645044926006,18.50430025,102.74,102.65,68.11941036]
[1645044926204,42.47717669,102.73,102.65,68.11941036]
[1645044926405,4.869,102.72,102.65,68.11941036]
[1645044926603,38.85156356,102.71,102.65,68.11941036]
[1645044927806,53.46236356,102.71,102.65,68.11941036]
[1645044929609,52.96236356,102.71,102.65,68.11941036]
[1645044930010,1.35647621,102.72,102.65,82.72801036]
[1645044930208,15.96577621,102.73,102.65,82.72801036]
[1645044931007,37.73129752,102.72,102.65,82.72801036]
[1645044931408,52.34079752,102.72,102.65,68.11941036]
[1645044931609,53.69727373,102.72,102.65,68.11941036]
[1645044932611,38.13076031,102.7,102.65,68.11941036]
[1645044932811,52.74336031,102.7,102.65,43.39991036]
[1645044935912,20.83657621,102.71,102.65,43.39991036]
[1645044936114,15.96757621,102.71,102.65,43.39991036]
[1645044936318,1.35647621,102.71,102.66,0.25]
[1645044936512,1.35647621,102.72,102.66,0.25]
[1645044936915,37.27118578,102.72,102.66,0.25]
[1645044937516,1.35647621,102.71,102.66,0.25]
[1645044937915,44.37839543,102.7,102.65,43.39991036]
[1645044939716,1.35647621,102.71,102.65,43.39991036]
[1645044939921,15.96847621,102.71,102.65,43.39991036]
[1645044940518,15.96847621,102.71,102.64,0.52925132]
[1645044940720,29.92847621,102.71,102.64,0.52925132]
[1645044940922,1.35647621,102.7,102.64,0.52925132]
[1645044941121,6.22547621,102.7,102.64,0.52925132]
[1645044941323,14.6141,102.69,102.64,0.52925132]
[1645044941620,43.0530565,102.68,102.64,0.52925132]
[1645044941822,0.25,102.67,102.64,0.52925132]
[1645044942022,3.03219997,102.66,102.64,0.52925132]
[1645044942426,0.25,102.67,102.64,0.52925132]
[1645044944642,38.47609489,102.66,102.64,0.52925132]
[1645044945047,3.03219997,102.65,102.64,0.52925132]
[1645044945848,17.65169997,102.65,102.61,0.4804449]
[1645044946048,31.61169997,102.65,102.61,0.4804449]
[1645044946347,46.30880679,102.64,102.61,0.4804449]
[1645044946845,60.92980679,102.64,102.61,0.4804449]
[1645044948548,14.6227,102.63,102.6,0.48712686]
[1645044948948,46.32558019,102.62,102.6,0.48712686]
[1645044950551,3.03219997,102.61,102.6,0.48712686]
[1645044951150,3.03219997,102.61,102.56,0.4119579]
[1645044951750,46.85620843,102.6,102.56,0.4119579]
[1645044951951,3.03219997,102.59,102.56,0.4119579]
[1645044952351,3.03219997,102.59,102.57,0.25]
[1645044952852,28.5828,102.63,102.57,0.25]
[1645044953050,13.96,102.63,102.57,0.25]
[1645044953952,49.68315914,102.63,102.58,37.04204521]
[1645044956956,49.68315914,102.63,102.58,0.96431446]
[1645044957857,49.68315914,102.63,102.59,42.13493393]
[1645044958056,107.51004698,102.65,102.59,42.13493393]
[1645044958258,121.47004698,102.65,102.59,42.13493393]
[1645044958457,70.09624698,102.65,102.59,56.75223393]